fUST/lending_fUST_20240919
["ID","MTS","AMOUNT","RATE_DAILY","PERIOD"]
[338588886,1726751454712,-500.0,0.00016438,2]
[338588887,1726751454722,-312.33158,0.00016438,2]
[338588888,1726751454731,-151.0,0.00016473,2]
[338588889,1726751454744,-1006.10607374,0.00016712,2]
[338588890,1726751454754,-52.18468362,0.00016712,2]
[338588891,1726751455105,-312.33158,0.00016438,2]
[338588892,1726751455114,-421.96842,0.00016438,2]
[338588893,1726751455130,-90.995272,0.00016438,2]
[338588894,1726751455145,-500.0,0.00016438,2]
[338588895,1726751455157,-145.87553141,0.00016438,2]
[338588899,1726751500426,516.05074027,0.00013966,2]
[338588904,1726751623706,500.0,0.00018,15]
[338588906,1726751638964,500.0,0.00018,15]
[338588907,1726751654447,500.0,0.00018,15]
[338588908,1726751674584,500.0,0.00018,15]
[338588909,1726751681324,500.0,0.00018,15]
[338588910,1726751737113,500.0,0.00018,15]
[338588913,1726751750203,500.0,0.00018,15]
[338588914,1726751757647,500.0,0.00018,15]
[338588915,1726751783626,500.0,0.00018,15]
[338588916,1726751824373,500.0,0.00018,15]
[338588918,1726751838535,500.0,0.00018,15]
[338588934,1726751848175,-461.0,0.00022,120]
[338588935,1726751848544,500.0,0.00018,15]
[338588936,1726751857937,500.0,0.00018,15]
[338588937,1726751864847,757.7,0.00022,60]
[338588938,1726751865771,-200.0,0.00022182,120]
[338588943,1726751911676,200.0,0.00022472,120]
[338588944,1726751935129,-500.0,0.0002051,30]
[338588945,1726751935154,-500.0,0.0002051,30]
[338588946,1726751935177,-500.0,0.0002051,30]
[338588947,1726751935200,-975.90912962,0.0002051,30]
[338588948,1726751935223,-500.0,0.0002051,30]
[338588949,1726751935247,-500.0,0.0002051,30]
[338588950,1726751935271,-500.0,0.0002051,30]
[338588951,1726751935294,-500.0,0.0002051,30]
[338588952,1726751935317,-500.0,0.0002051,30]
[338588953,1726751935340,-500.0,0.0002051,30]
[338588954,1726751935364,-500.0,0.0002051,30]
[338588955,1726751935388,-500.0,0.0002051,30]
[338588956,1726751935412,-500.0,0.0002051,30]
[338588957,1726751935435,-500.0,0.0002051,30]
[338588958,1726751935458,-500.0,0.0002051,30]
[338588959,1726751935481,-500.0,0.0002051,30]
[338588960,1726751935505,-500.0,0.0002051,30]
[338588961,1726751935530,-500.0,0.0002051,30]
[338588962,1726751935553,-500.0,0.0002051,30]
[338588963,1726751935576,-500.0,0.0002051,30]
[338588964,1726751935601,-500.0,0.0002051,30]
[338588965,1726751935625,-500.0,0.0002051,30]
[338588966,1726751935648,-500.0,0.0002051,30]
[338588967,1726751935672,-500.0,0.0002051,30]
[338588968,1726751935697,-500.0,0.0002051,30]
[338588969,1726751935722,-500.0,0.0002051,30]
[338588970,1726751935745,-500.0,0.0002051,30]
[338588971,1726751935768,-500.0,0.0002051,30]
[338588972,1726751935871,-10877.4909989,0.00022,30]
[338588973,1726751935927,-210.0,0.00023,30]
[338588974,1726751935954,-200.0,0.00023915,120]
[338588975,1726751935977,-285.31513172,0.00024,30]
[338588976,1726751935999,-3000.0,0.00024,120]
[338588977,1726751936024,-500.0,0.000244,120]
[338588978,1726751936049,-10000.0,0.00024658,60]
[338588979,1726751936073,-500.0,0.000248,120]
[338588980,1726751936099,-939.49,0.000249,31]
[338588981,1726751936124,-939.49,0.000249,31]
[338588982,1726751936148,-939.49,0.000249,31]
[338588983,1726751936174,-939.49,0.000249,31]
[338588984,1726751936198,-939.49,0.000249,31]
[338588985,1726751936222,-939.49,0.000249,31]
[338588986,1726751936247,-939.49,0.000249,31]
[338588987,1726751936272,-939.49,0.000249,31]
[338588988,1726751936297,-939.49,0.000249,31]
[338588989,1726751936322,-939.49,0.000249,31]
[338588990,1726751936347,-939.49,0.000249,31]
[338588991,1726751936373,-939.49,0.000249,31]
[338588992,1726751936399,-939.49,0.000249,31]
[338588993,1726751936424,-939.49,0.000249,31]
[338588994,1726751936449,-939.49,0.000249,31]
[338588995,1726751936719,-939.49,0.000249,31]
[338588996,1726751936745,-1000.5,0.00025,31]
[338588997,1726751936769,-1000.5,0.00025,31]
[338588998,1726751936792,-1000.5,0.00025,31]
[338588999,1726751936816,-1000.5,0.00025,31]
[338589000,1726751936840,-1142.2,0.00025,31]
[338589001,1726751936864,-467.5785942,0.00025,60]
[338589002,1726751936892,-500.0,0.00025,120]
[338589003,1726751936919,-500.0,0.00025,120]
[338589004,1726751936942,-618.29848713,0.00025,120]
[338589005,1726751936969,-1434.0530849,0.00025,120]
[338589006,1726751936994,-2240.85,0.00025,120]
[338589007,1726751937023,-939.49,0.000253,31]
[338589008,1726751937049,-939.49,0.000253,31]
[338589009,1726751937075,-939.49,0.000253,31]
[338589010,1726751937101,-939.49,0.000253,31]
[338589011,1726751937126,-939.49,0.000253,31]
[338589012,1726751937151,-939.49,0.000253,31]
[338589013,1726751937177,-939.49,0.000253,31]
[338589014,1726751937203,-939.49,0.000253,31]
[338589015,1726751937228,-939.49,0.000253,31]
[338589016,1726751937254,-939.49,0.000253,31]
[338589017,1726751937280,-939.49,0.000253,31]
[338589018,1726751937305,-939.49,0.000253,31]
[338589019,1726751937330,-939.49,0.000253,31]
[338589020,1726751937359,-939.49,0.000253,31]
[338589021,1726751937384,-939.49,0.000253,31]
[338589022,1726751937409,-939.49,0.000253,31]
[338589023,1726751937434,-939.49,0.000253,31]
[338589024,1726751937458,-939.49,0.000253,31]
[338589025,1726751937483,-939.49,0.000253,31]
[338589026,1726751937508,-939.49,0.000253,31]
[338589027,1726751937533,-939.49,0.000253,31]
[338589028,1726751937558,-939.49,0.000253,31]
[338589029,1726751937584,-939.49,0.000253,31]
[338589030,1726751937612,-939.49,0.000253,31]
[338589031,1726751937638,-939.49,0.000257,31]
[338589032,1726751937663,-939.49,0.000257,31]
[338589033,1726751937689,-939.49,0.000257,31]
[338589034,1726751937715,-939.49,0.000257,31]
[338589035,1726751937740,-939.49,0.000257,31]
[338589036,1726751937766,-939.49,0.000257,31]
[338589037,1726751937791,-939.49,0.000257,31]
[338589038,1726751937817,-939.49,0.000257,31]
[338589039,1726751937842,-939.49,0.000257,31]
[338589040,1726751937873,-939.49,0.000257,31]
[338589041,1726751937900,-939.49,0.000257,31]
[338589042,1726751937926,-939.49,0.000257,31]
[338589043,1726751937954,-939.49,0.000257,31]
[338589044,1726751937980,-939.49,0.000257,31]
[338589045,1726751938007,-939.49,0.000257,31]
[338589046,1726751938033,-939.49,0.000257,31]
[338589047,1726751938060,-939.49,0.000257,31]
[338589048,1726751938086,-939.49,0.000257,31]
[338589049,1726751938112,-939.49,0.000257,31]
[338589050,1726751938138,-939.49,0.000257,31]
[338589051,1726751938164,-939.49,0.000257,31]
[338589052,1726751938190,-939.49,0.000257,31]
[338589053,1726751938215,-939.49,0.000257,31]
[338589054,1726751938241,-939.49,0.000257,31]
[338589055,1726751938264,-200.0,0.00025835,120]
[338589056,1726751938288,-500.0,0.00026,120]
[338589057,1726751938313,-939.49,0.000262,31]
[338589058,1726751938338,-939.49,0.000262,31]
[338589059,1726751938365,-939.49,0.000262,31]
[338589060,1726751938390,-939.49,0.000262,31]
[338589061,1726751938415,-939.49,0.000262,31]
[338589062,1726751938440,-939.49,0.000262,31]
[338589063,1726751938466,-939.49,0.000262,31]
[338589064,1726751938491,-939.49,0.000262,31]
[338589065,1726751938517,-939.49,0.000262,31]
[338589066,1726751938544,-939.49,0.000262,31]
[338589067,1726751938571,-939.49,0.000262,31]
[338589068,1726751938596,-939.49,0.000262,31]
[338589069,1726751938623,-939.49,0.000262,31]
[338589070,1726751938649,-939.49,0.000262,31]
[338589071,1726751938675,-939.49,0.000262,31]
[338589072,1726751938702,-939.49,0.000262,31]
[338589073,1726751938728,-939.49,0.000262,31]
[338589074,1726751938755,-939.49,0.000262,31]
[338589075,1726751938781,-939.49,0.000262,31]
[338589076,1726751938807,-939.49,0.000262,31]
[338589077,1726751938835,-939.49,0.000262,31]
[338589078,1726751938862,-939.49,0.000262,31]
[338589079,1726751938892,-939.49,0.000262,31]
[338589080,1726751938919,-939.49,0.000262,31]
[338589081,1726751938943,-200.0,0.00026407,120]
[338589082,1726751938970,-200.0,0.00026441,120]
[338589083,1726751938997,-939.49,0.000266,31]
[338589084,1726751939022,-939.49,0.000266,31]
[338589085,1726751939049,-939.49,0.000266,31]
[338589086,1726751939076,-939.49,0.000266,31]
[338589087,1726751939104,-939.49,0.000266,31]
[338589088,1726751939130,-939.49,0.000266,31]
[338589089,1726751939156,-939.49,0.000266,31]
[338589090,1726751939182,-939.49,0.000266,31]
[338589091,1726751939208,-939.49,0.000266,31]
[338589092,1726751939234,-939.49,0.000266,31]
[338589093,1726751939259,-939.49,0.000266,31]
[338589094,1726751939285,-939.49,0.000266,31]
[338589095,1726751939309,-271.84176094,0.0002661,30]
[338589096,1726751939334,-200.0,0.00026842,120]
[338589097,1726751939359,-1000.0,0.00026849,120]
[338589098,1726751939383,-3426.88331731,0.00027,120]
[338589099,1726751939602,-1934.39531611,0.00027,120]
[338589100,1726751939628,-500.0,0.00027,120]
[338589101,1726751939654,-5000.0,0.00027,30]
[338589102,1726751939678,-5000.0,0.00027,30]
[338589103,1726751939703,-5000.0,0.00027,30]
[338589104,1726751939726,-1076.58,0.00027,30]
[338589105,1726751939749,-1500.0,0.00027,42]
[338589106,1726751939773,-4370.83,0.00027,30]
[338589107,1726751939800,-400.0,0.00027397,60]
[338589108,1726751939824,-500.0,0.00027397,30]
[338589109,1726751939848,-500.0,0.00027397,60]
[338589110,1726751939874,-500.0,0.00027397,120]
[338589111,1726751939905,-328.0,0.00027397,120]
[338589112,1726751939931,-1737.8241813,0.00027397,30]
[338589113,1726751939961,-250.0,0.000274,120]
[338589114,1726751939985,-1500.0,0.00027409,42]
[338589115,1726751940011,-1029.71711033,0.000278,120]
[338589116,1726751940036,-1500.0,0.00027818,42]
[338589117,1726751940063,-1000.0,0.00028,120]
[338589118,1726751940087,-500.0,0.00028,120]
[338589119,1726751940112,-1479.38,0.00028,30]
[338589120,1726751940137,-2000.0,0.00028,30]
[338589121,1726751940162,-1500.0,0.00028227,42]
[338589122,1726751940188,-166.422157,0.00028493,38]
[338589123,1726751940215,-166.422157,0.00028493,47]
[338589124,1726751940240,-166.422157,0.00028493,56]
[338589125,1726751940266,-166.422157,0.00028493,65]
[338589126,1726751940290,-166.422157,0.00028493,74]
[338589127,1726751940314,-166.422157,0.00028493,83]
[338589128,1726751940338,-166.422157,0.00028493,92]
[338589129,1726751940363,-166.422157,0.00028493,101]
[338589130,1726751940388,-166.422157,0.00028493,110]
[338589131,1726751940412,-166.422157,0.00028493,119]
[338589132,1726751940436,-680.0,0.000285,120]
[338589133,1726751940460,-1500.0,0.00028636,42]
[338589134,1726751940484,-2997.63355999,0.00029,120]
[338589135,1726751940508,-18051.0677769,0.00029,30]
[338589136,1726751940532,-948.75,0.00029,120]
[338589137,1726751940556,-1500.0,0.00029045,42]
[338589138,1726751940580,-1500.0,0.00029455,42]
[338589139,1726751940606,-680.0,0.000296,120]
[338589140,1726751940630,-1500.0,0.00029864,42]
[338589141,1726751940653,-2773.10916949,0.0003,120]
[338589142,1726751940678,-347.15853814,0.0003,30]
[338589143,1726751940702,-500.0,0.0003,120]
[338589144,1726751940726,-2382.34713206,0.0003,120]
[338589145,1726751940749,-200.0,0.0003,120]
[338589146,1726751940774,-2015.58605458,0.0003,120]
[338589147,1726751940798,-3887.0,0.0003,120]
[338589148,1726751940822,-151.0,0.0003,120]
[338589149,1726751940847,-151.0,0.0003,120]
[338589150,1726751940877,-343.67395,0.000301,120]
[338589151,1726751940901,-407.925,0.000301,120]
[338589152,1726751940927,-400.0,0.00030137,60]
[338589153,1726751940952,-6247.4781,0.00030183,30]
[338589154,1726751940977,-1500.0,0.00030273,42]
[338589155,1726751941001,-200.0,0.00030316,120]
[338589156,1726751941026,-1500.0,0.00030682,42]
[338589157,1726751941051,-680.0,0.000307,120]
[338589158,1726751941075,-11387.14906933,0.00031,120]
[338589159,1726751941101,-1000.0,0.00031,120]
[338589160,1726751941125,-2000.0,0.00031,120]
[338589161,1726751941150,-2000.0,0.00031,120]
[338589162,1726751941176,-1500.0,0.00031091,42]
[338589163,1726751941202,-200.0,0.00031486,120]
[338589164,1726751941226,-2000.0,0.000315,120]
[338589165,1726751941251,-2000.0,0.000315,120]
[338589166,1726751941276,-1500.0,0.000315,42]
[338589167,1726751941301,-151.0,0.00031726,120]
[338589168,1726751941325,-2000.0,0.000318,30]
[338589169,1726751941349,-680.0,0.000318,120]
[338589170,1726751941376,-1500.0,0.00031909,42]
[338589171,1726751941401,-150.0,0.00032,30]
[338589172,1726751941426,-500.0,0.00032,120]
[338589173,1726751941450,-1000.0,0.00032,120]
[338589174,1726751941473,-3000.0,0.00032,60]
[338589175,1726751941498,-2000.0,0.00032,120]
[338589176,1726751941523,-2000.0,0.00032,120]
[338589177,1726751941549,-2000.0,0.00032,120]
[338589178,1726751941573,-636.459,0.00032183,30]
[338589179,1726751941597,-1500.0,0.00032318,42]
[338589180,1726751941623,-151.0,0.00032411,120]
[338589181,1726751941648,-11290.29731,0.000325,30]
[338589182,1726751941673,-3882.124,0.000325,120]
[338589183,1726751941697,-3882.124,0.000325,120]
[338589184,1726751941721,-3882.124,0.000325,120]
[338589185,1726751941745,-3882.125,0.000325,120]
[338589186,1726751941769,-3882.124,0.000325,120]
[338589187,1726751941794,-200.0,0.00032537,120]
[338589188,1726751941819,-1366.99,0.0003258,48]
[338589189,1726751941843,-1500.0,0.00032727,42]
[338589190,1726751941878,-496.56386332,0.00032877,60]
[338589191,1726751941903,-862.0,0.000329,30]
[338589192,1726751941929,-686.0,0.000329,120]
[338589193,1726751941955,-150.0,0.00033,30]
[338589194,1726751941980,-2522.82221755,0.00033,120]
[338589195,1726751942004,-2634.11293814,0.00033,60]
[338589196,1726751942029,-1000.0,0.00033,120]
[338589197,1726751942056,-3000.0,0.00033,62]
[338589198,1726751942080,-3000.0,0.00033,76]
[338589199,1726751942107,-955.40545042,0.00033,45]
[338589200,1726751942132,-200.0,0.00033129,120]
[338589201,1726751942157,-1500.0,0.00033136,42]
[338589202,1726751942378,-1128.1,0.0003315,118]
[338589203,1726751942405,-1128.1,0.0003315,118]
[338589204,1726751942429,-1128.1,0.0003315,118]
[338589205,1726751942452,-1128.1,0.0003315,118]
[338589206,1726751942476,-1128.1,0.0003315,118]
[338589207,1726751942499,-1128.1,0.0003315,118]
[338589208,1726751942522,-1128.1,0.0003315,118]
[338589209,1726751942545,-1128.1,0.0003315,118]
[338589210,1726751942568,-1128.1,0.0003315,118]
[338589211,1726751942591,-1128.1,0.0003315,118]
[338589212,1726751942615,-1128.1,0.0003315,118]
[338589213,1726751942640,-1128.1,0.0003315,118]
[338589214,1726751942663,-1128.1,0.0003315,118]
[338589215,1726751942688,-1128.1,0.0003315,118]
[338589216,1726751942712,-1128.1,0.0003315,118]
[338589217,1726751942735,-1128.1,0.0003315,118]
[338589218,1726751942758,-1128.1,0.0003315,118]
[338589219,1726751942781,-1128.1,0.0003315,118]
[338589220,1726751942804,-1128.1,0.0003315,118]
[338589221,1726751942828,-1128.1,0.0003315,118]
[338589222,1726751942852,-1128.1,0.0003315,118]
[338589223,1726751942878,-1128.1,0.0003315,118]
[338589224,1726751942902,-1128.1,0.0003315,118]
[338589225,1726751942926,-1128.31926978,0.0003315,118]
[338589226,1726751942952,-151.0,0.00033452,120]
[338589227,1726751942977,-10000.0,0.000335,30]
[338589228,1726751943001,-1500.0,0.00033545,42]
[338589229,1726751943026,-934.0,0.0003366,120]
[338589230,1726751943059,-200.0,0.00033935,120]
[338589231,1726751943083,-1500.0,0.00033955,42]
[338589232,1726751943109,-200.0,0.00034,30]
[338589233,1726751943144,-500.0,0.00034,120]
[338589234,1726751943170,-1500.0,0.00034364,42]
[338589235,1726751943195,-1500.0,0.00034773,42]
[338589236,1726751943219,-1000.0,0.000348,60]
[338589237,1726751943244,-151.0,0.00034822,120]
[338589238,1726751943268,-300.0,0.00035,30]
[338589239,1726751943292,-50000.0,0.00035,30]
[338589240,1726751943316,-50000.0,0.00035,30]
[338589241,1726751943341,-500.0,0.00035,120]
[338589242,1726751943370,-200.0,0.00035,120]
[338589243,1726751943395,-1008.28,0.00035,30]
[338589244,1726751943418,-900.08840224,0.00035,120]
[338589245,1726751943442,-1182.13,0.00035,120]
[338589246,1726751943466,-2074.09438916,0.00035,120]
[338589247,1726751943491,-151.0,0.00035178,120]
[338589248,1726751943516,-1500.0,0.00035182,42]
[338589249,1726751943541,-1500.0,0.00035591,42]
[338589250,1726751943566,-5492.479073,0.00035616,120]
[338589251,1726751943590,-1500.0,0.00036,42]
[338589252,1726751943617,-2000.0,0.00036,120]
[338589253,1726751943641,-50000.0,0.00036,120]
[338589254,1726751943666,-50000.0,0.00036,30]
[338589255,1726751943691,-50000.0,0.00036,30]
[338589256,1726751943716,-500.0,0.00036,120]
[338589257,1726751943741,-500.0,0.00036,120]
[338589258,1726751943765,-1500.0,0.00036409,42]
[338589259,1726751943789,-178.82389807,0.000365,120]
[338589260,1726751943813,-1500.0,0.00036818,42]
[338589261,1726751943838,-151.0,0.00036904,120]
[338589262,1726751943862,-500.0,0.00037,120]
[338589263,1726751943891,-343.67395,0.000371,120]
[338589264,1726751943917,-407.925,0.000371,120]
[338589265,1726751943942,-1500.0,0.00037227,42]
[338589266,1726751943969,-151.0,0.00037233,120]
[338589267,1726751943994,-1500.0,0.00037636,42]
[338589268,1726751944020,-910.78051457,0.00038,30]
[338589269,1726751944046,-2000.0,0.00038,120]
[338589270,1726751944070,-589.0,0.00038,30]
[338589271,1726751944095,-10000.0,0.00038,40]
[338589272,1726751944122,-1500.0,0.00038045,42]
[338589273,1726751944148,-1790.49,0.00038356,120]
[338589274,1726751944174,-500.0,0.00038356,120]
[338589275,1726751944200,-548.29,0.00038356,120]
[338589276,1726751944225,-548.29,0.00038356,120]
[338589277,1726751944250,-548.29,0.00038356,120]
[338589278,1726751944274,-548.29,0.00038356,120]
[338589279,1726751944298,-548.29,0.00038356,120]
[338589280,1726751944322,-548.29,0.00038356,120]
[338589281,1726751944346,-548.29,0.00038356,120]
[338589282,1726751944373,-548.29,0.00038356,120]
[338589283,1726751944396,-548.29,0.00038356,120]
[338589284,1726751944420,-548.29,0.00038356,120]
[338589285,1726751944444,-548.29,0.00038356,120]
[338589286,1726751944470,-548.29,0.00038356,120]
[338589287,1726751944496,-548.29,0.00038356,120]
[338589288,1726751944520,-548.29,0.00038356,120]
[338589289,1726751944544,-548.29,0.00038356,120]
[338589290,1726751944568,-548.29,0.00038356,120]
[338589291,1726751944592,-548.29,0.00038356,120]
[338589292,1726751944616,-548.29,0.00038356,120]
[338589293,1726751944640,-548.29,0.00038356,120]
[338589294,1726751944663,-548.29,0.00038356,120]
[338589295,1726751944687,-548.29,0.00038356,120]
[338589296,1726751944711,-548.29,0.00038356,120]
[338589297,1726751944735,-548.29,0.00038356,120]
[338589298,1726751944758,-548.45292205,0.00038356,120]
[338589299,1726751944781,-2876.29,0.00038356,120]
[338589300,1726751944805,-2876.29,0.00038356,120]
[338589301,1726751944829,-2876.29,0.00038356,120]
[338589302,1726751944852,-2876.29,0.00038356,120]
[338589303,1726751944879,-2876.29,0.00038356,120]
[338589304,1726751944903,-2876.29,0.00038356,120]
[338589305,1726751944927,-2876.29,0.00038356,120]
[338589306,1726751945136,-2876.29,0.00038356,120]
[338589307,1726751945163,-2876.29,0.00038356,120]
[338589308,1726751945187,-2876.29,0.00038356,120]
[338589309,1726751945212,-2876.29,0.00038356,120]
[338589310,1726751945236,-2876.29,0.00038356,120]
[338589311,1726751945261,-2876.29,0.00038356,120]
[338589312,1726751945286,-2876.29,0.00038356,120]
[338589313,1726751945312,-2876.29,0.00038356,120]
[338589314,1726751945336,-2876.29,0.00038356,120]
[338589315,1726751945361,-2876.29,0.00038356,120]
[338589316,1726751945386,-2876.29,0.00038356,120]
[338589317,1726751945409,-2876.29,0.00038356,120]
[338589318,1726751945433,-2876.29,0.00038356,120]
[338589319,1726751945457,-2876.29,0.00038356,120]
[338589320,1726751945480,-2876.29,0.00038356,120]
[338589321,1726751945504,-2876.29,0.00038356,120]
[338589322,1726751945529,-2876.30655746,0.00038356,120]
[338589323,1726751945553,-4457.6271215,0.00038398,120]
[338589324,1726751945583,-1500.0,0.00038455,42]
[338589325,1726751945614,-151.0,0.0003863,120]
[338589326,1726751945640,-500.0,0.00038668,120]
[338589327,1726751945666,-1500.0,0.00038864,42]
[338589328,1726751945690,-7524.01831422,0.0003888,120]
[338589329,1726751945715,-1790.49,0.00038904,120]
[338589330,1726751945743,-500.0,0.00038904,120]
[338589331,1726751945768,-150.0,0.00039,30]
[338589332,1726751945794,-500.0,0.00039,120]
[338589333,1726751945819,-2280.0,0.00039,120]
[338589334,1726751945844,-1500.0,0.00039273,42]
[338589335,1726751945870,-1790.49,0.00039452,120]
[338589336,1726751945897,-500.0,0.00039452,120]
[338589337,1726751945922,-151.0,0.00039644,120]
[338589338,1726751945950,-1500.0,0.00039682,42]
[338589339,1726751945975,-523.621,0.00039813,56]
[338589340,1726751945999,-3000.0,0.000399,120]
[338589341,1726751946024,-150.0,0.0004,30]
[338589342,1726751946049,-3022.95716145,0.0004,120]
[338589343,1726751946073,-1478.54273201,0.0004,120]
[338589344,1726751946098,-1683.98880788,0.0004,120]
[338589345,1726751946125,-2000.0,0.0004,30]
[338589346,1726751946151,-1000.0,0.0004,120]
[338589347,1726751946176,-300.0,0.0004,30]
[338589348,1726751946202,-1115.57138345,0.0004,30]
[338589349,1726751946227,-100000.0,0.0004,120]
[338589350,1726751946254,-3498.25120628,0.0004,120]
[338589351,1726751946278,-1790.49,0.0004,120]
[338589352,1726751946303,-2000.0,0.0004,120]
[338589353,1726751946328,-3000.0,0.0004,120]
[338589354,1726751946352,-3785.61491799,0.0004,120]
[338589355,1726751946383,-2036.6,0.0004,30]
[338589356,1726751946407,-2420.94657749,0.0004,120]
[338589357,1726751946430,-2802.97970396,0.0004,30]
[338589358,1726751946454,-910.36392976,0.0004,120]
[338589359,1726751946479,-500.0,0.0004,120]
[338589360,1726751946504,-284.932525,0.0004,30]
[338589361,1726751946529,-1500.0,0.00040091,42]
[338589362,1726751946555,-151.0,0.00040356,120]
[338589363,1726751946580,-1500.0,0.000405,42]
[338589364,1726751946607,-1790.49,0.00040547,120]
[338589365,1726751946632,-500.0,0.00040547,120]
[338589366,1726751946659,-1500.0,0.00040909,42]
[338589367,1726751946684,-200.0,0.00041,30]
[338589368,1726751946709,-2627.58905658,0.00041,120]
[338589369,1726751946735,-500.0,0.00041,120]
[338589370,1726751946759,-4420.33810381,0.00041,30]
[338589371,1726751946786,-9297.21873643,0.00041,40]
[338589372,1726751946811,-152.0,0.00041041,31]
[338589373,1726751946835,-3071.4094775,0.00041095,120]
[338589374,1726751946861,-1790.49,0.00041095,120]
[338589375,1726751946889,-600.0,0.00041095,120]
[338589376,1726751946915,-600.0,0.00041095,120]
[338589377,1726751946943,-600.0,0.00041095,120]
[338589378,1726751946974,-600.0,0.00041095,120]
[338589379,1726751946999,-600.0,0.00041095,120]
[338589380,1726751947024,-600.0,0.00041095,120]
[338589381,1726751947051,-500.0,0.00041095,120]
[338589382,1726751947076,-1185.78744502,0.00041095,120]
[338589383,1726751947100,-47500.26,0.00041096,30]
[338589384,1726751947126,-1500.0,0.00041318,42]
[338589385,1726751947150,-500.0,0.00041374,120]
[338589386,1726751947175,-5492.479073,0.00041553,120]
[338589387,1726751947198,-1790.49,0.00041643,120]
[338589388,1726751947223,-600.0,0.00041643,120]
[338589389,1726751947247,-500.0,0.00041643,120]
[338589390,1726751947271,-1500.0,0.00041727,42]
[338589391,1726751947294,-269.03942788,0.00042,120]
[338589392,1726751947318,-1000.0,0.00042,120]
[338589393,1726751947341,-165.12767113,0.00042,30]
[338589394,1726751947366,-982218.79283895,0.00042,30]
[338589395,1726751959171,-4464.84511279,0.00033823,30]
[338589396,1726751959196,-2480.74540206,0.00033823,120]
[338589397,1726751959461,-8839.4958552,0.00033823,35]
[338589398,1726751959490,-1573.75672887,0.00033823,120]
[338589399,1726751959514,-1521.93830266,0.00033823,120]
[338589400,1726751959538,-1942.7,0.00033823,120]
[338589401,1726751959562,-43160.96759693,0.00033823,32]
[338589402,1726751959586,-881.01718729,0.00033823,35]
[338589403,1726751959610,-302.7773938,0.00033823,120]
[338589404,1726751959643,-799.73914317,0.00033823,120]
[338589405,1726751959667,-921.28953755,0.00033823,37]
[338589406,1726751959691,-2799.0,0.00033823,120]
[338589407,1726751959715,-2258.0,0.00033823,30]
[338589408,1726751959739,-257.01100236,0.00033823,30]
[338589409,1726751959762,-1000.0,0.00033823,120]
[338589410,1726751959786,-1000.0,0.00033823,120]
[338589411,1726751959810,-1000.0,0.00033823,90]
[338589412,1726751959833,-1000.0,0.00033823,90]
[338589413,1726751959858,-1000.0,0.00033823,60]
[338589414,1726751959884,-1000.0,0.00033823,60]
[338589415,1726751959907,-427.64524143,0.00033823,120]